Cogmind - Beta 13 *** ADVENTURER MODE // 2024.07.23 @ 08:18:24 Player: Jefffff Result: Destroyed by as-21385 with Assembled Blade Performance ------------- Evolutions (0) 0 Regions Visited (4) 800 Robots Destroyed (30) 150 Value Destroyed (659) 659 Prototype IDs (4) 80 Alien Tech Used (0) 0 Bonus (0) 0 TOTAL SCORE: 1689 Bonus ------- None Cogmind --------- Core Integrity 0/250 Matter 288/300 Energy 250/250 System Corruption 0% Temperature Cool (80) Movement Treading (160) Location -9/Mines Parts ------- > --- POWER (1) -------- Ion Engine > --- PROPULSION (2) --- Light Treads Improved Treads > --- UTILITY (2) ------ Large Storage Unit Core Shielding > --- WEAPON (2) ------- Beam Rifle Light Cannon > --- INVENTORY (15) --- Light Ion Engine Light Ion Engine Improved Treads Improved Treads Improved Treads ECM Suite Splice Drone Bay (6/6) Beam Rifle Beam Rifle Beam Rifle Light Cannon Mining Claw Peak State ------------ > --- POWER ------------ Ion Engine > --- PROPULSION ------- Wheel Compact Wheel > --- UTILITY ---------- Large Storage Unit Splice Drone Bay > --- WEAPON ----------- Beam Rifle Light Cannon > --- INVENTORY -------- Ion Engine Light Ion Engine Light Treads Improved Treads Improved Treads Improved Treads Improved Treads Sensor Array ECM Suite Core Shielding Beam Rifle Beam Rifle Beam Rifle Light Cannon Mining Claw [Rating: 16] Favorites ----------- Power Ion Engine Engine Ion Engine Propulsion Compact Wheel Treads Light Treads Wheel Compact Wheel Utility Large Storage Unit Device Sensor Array Storage Large Storage Unit Protection Core Shielding Weapon Light Assault Rifle Energy Gun Beam Rifle Ballistic Gun Light Assault Rifle Ballistic Cannon Light Cannon Build | -11 -10 -10 -10 -9 ------- Run | Yrd Mat Min Exi Min Slots Evolved . | . . . . . Power . | . . . . . Propulsion . | . . . . . Utility . | . . . . . Weapon . | . . . . . Parts Attached 28 | 6 14 4 . 4 Power 6 | 1 3 1 . 1 Engine 6 | 1 3 1 . 1 Core . | . . . . . Reactor . | . . . . . Propulsion 9 | 2 5 . . 2 Treads 3 | . 1 . . 2 Leg . | . . . . . Wheel 6 | 2 4 . . . Hover . | . . . . . Flight . | . . . . . Utility 7 | 1 3 2 . 1 Device 3 | . 1 2 . . Storage 3 | 1 2 . . . Processor . | . . . . . Hackware . | . . . . . Protection 1 | . . . . 1 Artifact . | . . . . . Weapon 6 | 2 3 1 . . Energy Gun 2 | 1 1 . . . Energy Cannon . | . . . . . Ballistic Gun 3 | 1 2 . . . Ballistic Cannon 1 | . . 1 . . Launcher . | . . . . . Special Weapon . | . . . . . Impact Weapon . | . . . . . Slashing Weapon . | . . . . . Piercing Weapon . | . . . . . Special Melee Weapon . | . . . . . Unidentified Prototypes 1 | . . 1 . . Parts Lost 5 | . 2 . . 3 Power . | . . . . . Propulsion 4 | . 2 . . 2 Utility 1 | . . . . 1 Weapon . | . . . . . Highest Loss Streak 2 | . 1 . . 2 To Critical Strikes . | . . . . . Average Slot Usage (%) 96 | . 96 100 100 90 Engine 14 | . 14 14 14 14 Treads 5 | . 7 . . 8 Wheel 20 | . 19 28 28 10 Device 11 | . 11 14 14 9 Storage 14 | . 14 14 14 14 Energy Gun 10 | . 6 14 14 14 Ballistic Gun 10 | . 21 1 . . Ballistic Cannon 6 | . . 12 14 14 Naked Turns . | . . . . . Heaviest Build 32 | 10 30 32 32 32 Greatest Support 43 | 26 32 26 26 43 Greatest Overweight (x) 1 | . 1 1 1 1 Average Overweight (x) . | . . 1 1 . Largest Inventory Capacity 15 | 8 15 15 15 15 Average Capacity 14 | 6 14 15 15 15 Most Carried 15 | 5 15 15 15 15 Average Carried 9 | 1 5 14 15 13 Final Capacity 15 | 8 15 15 15 15 Final Carried 15 | . 15 15 15 12 Class Distribution -------------------- 100% | Mutant Dominant Class ---------------- Mutant | -10/Materials Mutant | -10/Mines Mutant | -10/Exiles Mutant | -9/Mines Resources | -11 -10 -10 -10 -9 ----------- Run | Yrd Mat Min Exi Min Matter Collected 630 | 135 368 6 . 121 Remotely . | . . . . . Salvage Created 955 | . 799 87 . 69 Parts 54 | . 43 2 . 9 Haulers Intercepted 1 | . 1 . . . Recyclers Shooed 1 | . 1 . . . Parts Field Recycled . | . . . . . Retrieved Matter . | . . . . . Parts Self-Destructed . | . . . . . Prevented . | . . . . . Kills | -11 -10 -10 -10 -9 ------- Run | Yrd Mat Min Exi Min Combat Hostiles Destroyed 28 | . 18 2 . 8 Guns 25 | . 18 2 . 5 Cannons 3 | . . . . 3 Classes Destroyed 7 | . 6 . . 1 Worker 1 | . 1 . . . Hauler 1 | . 1 . . . Recycler 1 | . 1 . . . Watcher 3 | . 3 . . . Swarmer 10 | . 6 . . 4 Grunt 14 | . 12 2 . . Assembled 4 | . . . . 4 Best Kill Streak 9 | . 9 2 . 4 Combat Bots Only 7 | . 7 2 . 4 Max Kills in Single Turn 2 | . 1 1 . 2 Gunslinging . | . . . . . Exploded . | . . . . . Melee . | . . . . . Uniques/NPCs Destroyed . | . . . . . Combat | -11 -10 -10 -10 -9 -------- Run | Yrd Mat Min Exi Min Hostile Shots Fired 146 | . 102 12 . 32 Missed 39 | . 33 3 . 3 Damage Taken 1161 | . 532 90 . 539 Core 261 | . 135 8 . 118 Absorbed by Shields . | . . . . . Redirected to Shielding 14 | . . . . 14 Ignored by Resistances 343 | . 173 25 . 145 Core Remaining (%) 100 | 100 . . . . Volleys Fired 100 | . 77 6 . 17 Largest 2 | . 2 2 . 2 Hottest 91 | . 76 76 . 91 Shots Fired 200 | . 154 12 . 34 Gun 183 | . 154 12 . 17 Cannon 17 | . . . . 17 Launcher . | . . . . . Special . | . . . . . Kinetic 131 | . 108 6 . 17 Thermal 69 | . 46 6 . 17 Explosive . | . . . . . Electromagnetic . | . . . . . Robot Hit Streak 34 | . 16 28 . 34 Robot Miss Streak 4 | . 4 . . 3 Penetration Max . | . . . . . Secondary Targets 6 | . 6 . . . Max Gunslinging Chain 1 | . 1 . . . Shots Hit Robots 148 | . 113 12 . 23 Core Hits 72 | . 50 6 . 16 Critical Kills . | . . . . . Critical Parts Destroyed . | . . . . . Critical Strikes 1 | . 1 . . . Burn 1 | . 1 . . . Melee Attacks . | . . . . . Impact . | . . . . . Slashing . | . . . . . Piercing . | . . . . . Sneak Attacks . | . . . . . Combat Hostiles . | . . . . . Follow-up Attacks . | . . . . . Damage Inflicted 1611 | . 1088 133 . 390 Guns 1426 | . 1088 133 . 205 Cannons 185 | . . . . 185 Explosions . | . . . . . Melee . | . . . . . Ramming . | . . . . . Kinetic 907 | . 675 47 . 185 Thermal 704 | . 413 86 . 205 Explosive . | . . . . . Electromagnetic . | . . . . . Impact . | . . . . . Slashing . | . . . . . Piercing . | . . . . . Highest Corruption . | . . . . . Average Corruption . | . . . . . Corruption Purged . | . . . . . Corruption Blocked . | . . . . . Overload Shots . | . . . . . Overflow Damage 4 | . . . . 4 Projectiles 4 | . . . . 4 Explosions . | . . . . . Melee . | . . . . . Knockbacks 9 | . . . . 9 Impact . | . . . . . Kinetic 7 | . . . . 7 Secondary 2 | . . . . 2 Self-Inflicted Damage . | . . . . . Shots . | . . . . . Rammed . | . . . . . Targets Rammed . | . . . . . Kicked . | . . . . . Crushed . | . . . . . Highest Temperature 205 | . 160 205 . 150 Average Temperature 49 | . 38 102 . 57 Received Heat Transfer 360 | . 291 69 . . Siege Activations . | . . . . . Robots Corrupted . | . . . . . Combat Hostiles . | . . . . . Parts Fried . | . . . . . Impact Corruptions . | . . . . . Robots Melted . | . . . . . Combat Hostiles . | . . . . . Parts Melted 1 | . . 1 . . Heat Transferred 1820 | . 1080 222 . 518 Parts Sabotaged . | . . . . . Parts Stolen . | . . . . . Parts Stripped . | . . . . . Power Chain Reactions . | . . . . . Alert | -11 -10 -10 -10 -9 ------- Run | Yrd Mat Min Exi Min Peak Influence 224 | . 224 50 . 90 Initial . | . . . . . Average 60 | . 68 44 . 55 Maximum Alert Level 1 | . 1 . . . Low Security (%) 93 | 100 89 100 . 100 Level 1 6 | . 10 . . . Level 2 . | . . . . . Level 3 . | . . . . . Level 4 . | . . . . . Level 5 . | . . . . . High Security . | . . . . . Max Security . | . . . . . Squads Dispatched 5 | . 5 . . . Investigation 5 | . 5 . . . Extermination . | . . . . . Reinforcement . | . . . . . Assault . | . . . . . Garrison . | . . . . . Intercept . | . . . . . Searches Triggered . | . . . . . Construction Impeded . | . . . . . Haulers Reinforced . | . . . . . Active Scanning Responses . | . . . . . Cargo Convoy Interrupts . | . . . . . Stealth | -11 -10 -10 -10 -9 --------- Run | Yrd Mat Min Exi Min Distress Signals 1 | . 1 . . . Communications Jammed . | . . . . . Distress Signals . | . . . . . Times Spotted 45 | . 29 2 . 14 Peak Tracking Total 5 | . 4 2 . 5 Tactical Retreats 1 | . 1 . . . Traps | -11 -10 -10 -10 -9 ------- Run | Yrd Mat Min Exi Min Traps Triggered 1 | . 1 . . . Indirectly . | . . . . . Trap Hack Attempts . | . . . . . Triggered . | . . . . . Disarmed . | . . . . . Reprogrammed . | . . . . . Reused . | . . . . . Traps Extracted . | . . . . . Installed . | . . . . . Triggered . | . . . . . Machines | -11 -10 -10 -10 -9 ---------- Run | Yrd Mat Min Exi Min Machines Disabled . | . . . . . Max in Single Turn . | . . . . . Machines Repaired . | . . . . . Machines Dismantled . | . . . . . Machines Sabotaged . | . . . . . Overloaded Fab Kills . | . . . . . Hacking | -11 -10 -10 -10 -9 --------- Run | Yrd Mat Min Exi Min Machines Accessed 13 | . 9 1 3 . Terminals 7 | . 7 . . . Fabricators . | . . . . . Repair Stations . | . . . . . Recycling Units 2 | . 2 . . . Scanalyzers . | . . . . . Garrison Access . | . . . . . Total Hacks 33 | . 29 1 3 . Successful 23 | . 19 1 3 . Failed 9 | . 9 . . . Catastrophic . | . . . . . Database Lockouts 1 | . 1 . . . Manual 23 | . 23 . . . Terminals 27 | . 27 . . . Fabricators . | . . . . . Repair Stations . | . . . . . Recycling Units 2 | . 2 . . . Scanalyzers . | . . . . . Garrison Access . | . . . . . Terminal Hacks 13 | . 9 1 3 . Record 3 | . . . 3 . Part Schematic 3 | . 3 . . . Robot Analysis 1 | . 1 . . . Prototype ID Bank 2 | . 2 . . . Open Door 1 | . . 1 . . Level Access Points 1 | . 1 . . . Branch Access Points 2 | . 2 . . . Fabricator Hacks . | . . . . . Repair Station Hacks . | . . . . . Recycling Unit Hacks . | . . . . . Scanalyzer . | . . . . . Garrison Access Hacks . | . . . . . Unauthorized Hacks 10 | . 10 . . . Terminals 8 | . 8 . . . Assimilate 1 | . 1 . . . Botnet 7 | . 7 . . . Fabricators . | . . . . . Repair Stations . | . . . . . Recycling Units 2 | . 2 . . . Tunnel 2 | . 2 . . . Scanalyzers . | . . . . . Garrison Access . | . . . . . Data Cores Recovered . | . . . . . Used . | . . . . . Hacking Detections 7 | . 7 . . . Full Trace Events 3 | . 3 . . . Feedback Events . | . . . . . Feedback Blocked . | . . . . . Robot Schematics Acquired . | . . . . . Robots Built . | . . . . . Authchips . | . . . . . Time . | . . . . . Total Robot Build Rating . | . . . . . Part Schematics Acquired 3 | . 3 . . . Parts Built . | . . . . . Authchips . | . . . . . Time . | . . . . . Total Part Build Rating . | . . . . . Parts Repaired . | . . . . . Time . | . . . . . Parts Recycled . | . . . . . Recycled Matter . | . . . . . Retrieved Matter . | . . . . . Retrieved Components . | . . . . . Parts Scanalyzed . | . . . . . Part Schematics Acquired . | . . . . . Parts Damaged . | . . . . . Bothacking | -11 -10 -10 -10 -9 ------------ Run | Yrd Mat Min Exi Min Used RIF Installer . | . . . . . Robots Hacked . | . . . . . Non-combat . | . . . . . Combat . | . . . . . Robot Hacks Applied . | . . . . . Relay Couplers Released . | . . . . . Fabnet Peak Effective % . | . . . . . Robots Rewired . | . . . . . Allies Hacked . | . . . . . Hacks Repelled . | . . . . . Allies | -11 -10 -10 -10 -9 -------- Run | Yrd Mat Min Exi Min Total Allies . | . . . . . Largest Group . | . . . . . Highest-Rated Group . | . . . . . Highest-Rated Ally . | . . . . . Total Orders . | . . . . . Ally Attacks . | . . . . . Total Damage . | . . . . . Kills . | . . . . . Allies Corrupted . | . . . . . Allies Melted . | . . . . . Intel | -11 -10 -10 -10 -9 ------- Run | Yrd Mat Min Exi Min Robot Analysis Total 1 | . 1 . . . Derelict Logs Recovered 2 | . . 1 . 1 Drone Launches . | . . . . . Drone Recoveries . | . . . . . Exploration | -11 -10 -10 -10 -9 ------------- Run | Yrd Mat Min Exi Min Turns Passed 3356 | 39 1626 438 680 573 Spaces Moved 2149 | 39 866 395 646 203 Core 19 | 19 . . . . Treads 410 | . 317 . . 93 Legs . | . . . . . Wheels 1720 | 20 549 395 646 110 Hover . | . . . . . Flight . | . . . . . Fastest Speed 50 | 50 90 105 105 105 Average Speed 126 | 70 152 105 105 133 Slowest Speed 240 | 90 240 105 105 160 Overloaded Moves . | . . . . . Propulsion Burnouts . | . . . . . Robots Hopped . | . . . . . Cave-ins Triggered . | . . . . . Exploration Rate (%) 56 | 3 97 59 92 32 Regions Visited 4 Branch Regions 3 Pre-discovered Areas 2 | . 2 . . . Known Exits Taken 1 | . 1 . . . Unknown Exits Taken 3 | 1 . 1 1 . Scrap Searched . | . . . . . Spaces Dug . | . . . . . Terrain Destroyed . | . . . . . Melee . | . . . . . Projectile . | . . . . . AOE . | . . . . . Terrain Rammed . | . . . . . Walls Destroyed . | . . . . . Machines Disabled . | . . . . . Actions | -11 -10 -10 -10 -9 --------- Run | Yrd Mat Min Exi Min Total 2621 | 50 1046 407 647 471 Wait 290 | . 43 . 2 245 Move 2145 | 38 865 394 645 203 Hop . | . . . . . Pick Up 40 | 6 32 1 . 1 Fast Attach . | . . . . . Attach 15 | 6 5 1 . 3 Detach . | . . . . . Swap 13 | . 9 3 . 1 Drop 18 | . 15 2 . 1 Fire 100 | . 77 6 . 17 Melee . | . . . . . Ram . | . . . . . Kick . | . . . . . Crush . | . . . . . Escape Stasis . | . . . . . Rewire . | . . . . . Trap . | . . . . . Miscellaneous . | . . . . . Route ------- -11/Scrapyard -10/Materials (discovered 5 exits: *Mat x3 / *Min x2) -10/Mines (discovered 2 exits: *Mat / *Exi) -10/Exiles -9/Mines (discovered 1 exit: [*Mat]) History --------- Turn | Location | Event 7 | -11/Scrapyard | Discovered new exit (range 15) 40 | -11/Scrapyard | Entered Materials 253 | -10/Materials | Destroyed 7 combat bots 314 | -10/Materials | Discovered new exit (range 9) 318 | -10/Materials | Build established: Mutant 831 | -10/Materials | Discovered new exit (range 12) 993 | -10/Materials | Discovered new exit (range 10) 1068 | -10/Materials | Discovered new exit (range 5) 1234 | -10/Materials | Discovered new exit (range 13) 1279 | -10/Materials | Identified exit to Mines 1344 | -10/Materials | Identified exit to Materials 1473 | -10/Materials | Central database locked down 1501 | -10/Materials | Core integrity fell below 50% 1666 | -10/Materials | Entered Mines 1708 | -10/Mines | Found the Drone Emporium 1714 | -10/Mines | Found Prototype Device 1715 | -10/Mines | Identified Splice Drone Bay 1753 | -10/Mines | Learned Materials emergency access door positions 1764 | -10/Mines | Deemed a non-threat by the Exiles lab entrance 1764 | -10/Mines | Discovered new exit (range 5) 1914 | -10/Mines | Discovered exit to Materials (range 10) 2104 | -10/Mines | Entered Exiles 2104 | -10/Exiles | Found Exiles lab abandoned 2771 | -10/Exiles | Discovered new exit (range 10) 2784 | -10/Exiles | Entered Mines 2831 | -9/Mines | Learned 4 Materials zone layouts 2831 | -9/Mines | Discovered new exit (range 6) 3160 | -9/Mines | Assembled infested the area 3330 | -9/Mines | Core integrity fell below 20% 3357 | -9/Mines | Destroyed by as-21385 with Assembled Blade Last Messages --------------- 03286_ as-65895 knocked back. 03289_ as-65895 destroyed. 03289_ K-01 Serf collects debris. 03292_ Acquired 5 matter. 03292_ R-06 Scavenger collects Wheel. 03293_ Acquired 18 matter. 03294_ K-01 Serf collects debris. 03296_ Acquired 1 matter. 03296_ R-06 Scavenger collects Lgt. Ion Engine. 03299_ R-06 Scavenger collects Wheel. 03300_ K-01 Serf collects debris. 03304_ Acquired 26 matter. 03308_ K-01 Serf collects debris. 03308_ Acquired Lgt. Ion Engine. 03313_ K-01 Serf collects debris. 03323_ as-62355 knocked back. 03329_ as-62355 destroyed. 03332_ as-24841 destroyed. 03336_ Acquired 22 matter. 03355_ as-85152 destroyed. Map ----- +----------------------------------------------------+ | ?????????????????????????????????????? | | ?????????????????????????????????????? | | ?????????????????????????????????????? | | ?????????????????????????????????????? | | ?????????????????????????????????????? | | ?????????????????????????????????????? | | ?????????????????????????????????????? | | ?????????????????????????????????????? | | ?????????????????????????????????????? | | ?????????????????????????????????????? | | ?????????????????????????????????????? | | ?????????????????????????????????????? | | ?????????????????????????????????????? | | ?????????????????????????????????????? | | ?????????????????????????????????????? | | ?????????????????????????????????????? | | ?????????????????????????????????????? | | ???????????????????????? ????????????? | | ???????????????????????? ???????????? | | ????????????###????????? =???????????? | | ???????????? #????????? ???????????? | | ????????????# #???????? #???????????? | | ???????????## #???????? #???????????? | | ??????????## ##??????? #???????????? | | ?????????## ##?????? #???????????? | | ????????## @ #?????? #???????????? | | ????????# aa%##?????? #???????????? | | ????????# #??????? #???????????? | | ????????# """%##???### #???????????? | | ?######## """ %##### #???????????? | | ?# ## """a #???????????? | | ?# ### % %a##### ###???????????? | | ?# #?# ##???# #####?????????? | | ?# #?# ##????# ##????????? | | ?# #?# ##????# #????????? | | ?# #?# ###??#### #????????? | | ?## ###?## ##????# #????????? | | ??# ###### ! ##???# #####????? | | ??# ## *% #???## ## ##???? | | ??# # = ####### # ##??? | | ??# =% %%% # #??? | | ?# ### ### ########### | | ?# #?# ### * | | ?# #?# ### ########## | | ?# ### #### ## # #?# | | ?## ##?# #### < ##?# | | ??#####??## ####?# # ###??# | | ??????????#####????# ######???# | | ???????????????????# #????????# | | ???????????????????### #????????# | +----------------------------------------------------+ Best States ------------- Heat Dissipation 25 Energy Generation 10 Energy Capacity 250 Matter Stores 300 Matter Capacity 300 Sight Range 16 Robot Scan Range 14 Terrain Scan Density 10 Resistance: KI 20 Resistance: TH 20 Resistance: EX 20 Resistance: EM 20 Resistance: I 20 Resistance: S 20 Resistance: P 20 Core Shielding 20 Evasion (%) 50 Recoil Reduction 2 Offensive Hacking 10 Item Schematics ----------------- Power Shielding | -10/Materials | Hacked Propulsion Shielding | -10/Materials | Hacked Lgt. Treads | -10/Materials | Hacked Robot Schematics ------------------ None Fabricated ------------ Nothing Alien Tech Used ----------------- None Achievements -------------- None Challenges ------------ None Game ------ Seed RiotPrecisionBay Manual? 0 Play Time 00:19:58 Cumulative 62.0 hours Start 2024.07.23 @ 08:00:28 End 2024.07.23 @ 08:18:24 Sessions 1 Manual Loads 0 Difficulty Adventurer Special Mode None Game No. 94 Rogue 0 Adventurer 94 Explorer 0 Win Type - Total 0 Types 0/0/0/0/0/0/0/0/0 Lore% 44 Gallery% 41 Achievement% 32 Wizard Run 0 Options --------- Layout 2 ASCII 0 Keyboard 0 Movement Mouse Keybinds 0 Fullscreen 2 Font 48/Smallcaps Map View 50x44 Zoom Use 0% Tactical HUD 1 Map Filters NONE Filters NONE Steam 1 RUN: 28c8d900-9279-428b-932a-2b12a287d968